Cogmind - Beta 13 X1 @@@ ROGUE MODE // 2023.06.29 @ 04:01:04 Player: cptwinky Result: Destroyed by G-73 Enforcer with Heavy Laser Performance ------------- Evolutions (9) 4500 Regions Visited (29) 5800 Robots Destroyed (413) 2065 Value Destroyed (18923) 18923 Prototype IDs (83) 1660 Alien Tech Used (1) 200 Bonus (9137) 9137 TOTAL SCORE: 42285 Bonus ------- Triggered High Security 500 High Alert Combat Kills 5835 Follower Combat Kills 2386 Entered DSFs 500 Network Hubs Disabled 200 Met Data Miner 300 Met Imprinter 300 Was Imprinted 300 Met R17 at Cetus 500 Friendly Fire -1684 Cogmind --------- Core Integrity 0/1600 Matter 300/300 Energy 99/100 System Corruption 11% Temperature Cool (9) Movement Core (50) Location -1/Access Parts ------- > --- POWER (3) -------- (None) > --- PROPULSION (8) --- (None) > --- UTILITY (13) ----- (None) > --- WEAPON (2) ------- (None) > --- INVENTORY (5) ---- Reinforced Quantum Reactor Experimental Sensor Array Long-range Terrain Scanner Multirail CR-A16's Behemoth Slayer Peak State ------------ > --- POWER ------------ Neutrino Core Quantum Reactor Light Quantum Reactor > --- PROPULSION ------- Advanced Heavy Siege Treads Advanced Heavy Siege Treads Advanced Heavy Siege Treads Advanced Heavy Siege Treads > --- UTILITY ---------- Advanced Cooling System Huge Storage Unit Advanced Visual Processing Unit Experimental Sensor Array Advanced Signal Interpreter Long-range Terrain Scanner Advanced Terrain Scan Processor Improved Targeting Computer Advanced Target Analyzer Improved Medium Armor Plating Improved Medium Armor Plating Advanced Shield Generator Hacking Drone Bay > --- WEAPON ----------- HERF Cannon Compact HERF Cannon > --- INVENTORY -------- Light Quantum Reactor Armored Heavy Treads Advanced Cooling System Zionite Biocell Matter Compressor Makeshift Trap Scanner Long-range Terrain Scanner Improved Kinecellerator Improved Weapon Cycler Hardened Medium Armor Plating Medium Insulated Plating Advanced Thermal Defense Suite Experimental EM Disruption Field Improved Remote Force Field Advanced Component Analysis Suite Long-range Tractor Beam Nova Cannon Advanced KE Penetrator Advanced KE Penetrator Smartbomb Launcher Mini Smartbomb Launcher RU-N14's Throwing Claymores CR-A16's Behemoth Slayer [Rating: 194] Favorites ----------- Power Cooled Ion Engine Engine Cooled Ion Engine Power Core Neutrino Core Reactor Quantum Reactor Propulsion High-density Centrium Wheel Treads Light Treads Leg Arachnoskeleton Wheel High-density Centrium Wheel Flight Unit Improved Diametric Drive Utility Huge Storage Unit Device Experimental Sensor Array Storage Huge Storage Unit Processor Improved Targeting Computer Hackware Improved System Shield Protection Makeshift Armor Plating Weapon Advanced Beam Cannon Energy Gun Medium Laser Energy Cannon Advanced Beam Cannon Ballistic Gun Barrage Gun Ballistic Cannon Heavy Hardcell Cannon Launcher Grenade Launcher Special Weapon RU-N14's Throwing Claymores Slashing Weapon Makeshift Sword Piercing Weapon CR-A16's Pointy Stick Special Melee Weapon Improved Datajack Build | -11 -10 -10 -10 -9 -9 -9 -8 -8 -8 -7 -7 -7 -7 -6 -6 -6 -6 -6 -5 -5 -5 -5 -5 -5 -4 -3 -3 -2 -1 ------- Run | Jun Mat Min Sub Mat Min Exi Min Mat Sto Fac Low Low Zio Pro Fac Low Low Dat Pro Fac Ext Cet Arc Hub Fac Res DSF Res Acc Slots Evolved 18 | . . . . 2 . . . 2 . 2 . . . . 2 . . . . 2 . . . . 2 2 . 2 2 Power 2 | . . . . . . . . . . . . . . . 1 . . . . . . . . . . 1 . . . Propulsion 5 | . . . . 1 . . . . . 1 . . . . . . . . . . . . . . 1 . . . 2 Utility 11 | . . . . 1 . . . 2 . 1 . . . . 1 . . . . 2 . . . . 1 1 . 2 . Weapon . | . . . . . . . . . . . . . . . . . . . . . . . . . . . . . . Parts Attached 496 | 2 7 2 18 23 . 2 6 10 19 8 7 11 9 23 44 6 17 . 20 8 25 8 15 25 48 6 13 19 95 Power 28 | . 1 . 3 2 . . . . . 1 . . . 3 2 . 1 . . 1 2 2 1 . 4 1 . 1 3 Engine 13 | . 1 . 3 2 . . . . . 1 . . . 3 1 . 1 . . 1 . . . . . . . . . Core 6 | . . . . . . . . . . . . . . . 1 . . . . . 2 1 . . 2 . . . . Reactor 9 | . . . . . . . . . . . . . . . . . . . . . . 1 1 . 2 1 . 1 3 Propulsion 55 | 2 1 . 2 6 . . . . . 1 . 3 1 6 8 1 2 . 1 1 1 1 4 1 3 . 4 . 6 Treads 33 | 2 1 . 1 4 . . . . . . . . . 6 2 . . . 1 1 1 . 3 1 1 . 3 . 6 Leg 7 | . . . . 2 . . . . . 1 . 3 1 . . . . . . . . . . . . . . . . Wheel 14 | . . . 1 . . . . . . . . . . . 5 1 2 . . . . 1 1 . 2 . 1 . . Hover . | . . . . . . . . . . . . . . . . . . . . . . . . . . . . . . Flight 1 | . . . . . . . . . . . . . . . 1 . . . . . . . . . . . . . . Utility 248 | . 3 . 2 4 . . 4 6 8 4 4 5 4 10 15 2 7 . 10 6 18 1 6 23 33 5 9 12 47 Device 161 | . . . . 1 . . 2 3 4 2 2 2 3 6 9 1 7 . 7 4 14 . 3 18 23 4 5 9 32 Storage 6 | . 2 . 1 . . . . 1 . . . . . . 1 . . . . . 1 . . . . . . . . Processor 14 | . 1 . . . . . . 1 1 2 . . . . 1 . . . . 1 1 . . . 3 . . 1 2 Hackware 4 | . . . . . . . . . . . . . . . . . . . . . . . . . 1 . 1 2 . Protection 63 | . . . 1 3 . . 2 1 3 . 2 3 1 4 4 1 . . 3 1 2 1 3 5 6 1 3 . 13 Artifact . | . . . . . . . . . . . . . . . . . . . . . . . . . . . . . . Weapon 165 | . 2 2 11 11 . 2 2 4 11 2 3 3 4 4 19 3 7 . 9 . 4 4 4 1 8 . . 6 39 Energy Gun . | . . . . . . . . . . . . . . . . . . . . . . . . . . . . . . Energy Cannon 33 | . . . 1 . . . . . 3 1 1 2 . 2 7 . . . . . . . . . . . . . 16 Ballistic Gun 24 | . . . . 1 . . . . . . . . . . 2 1 . . . . 1 2 2 . 1 . . 2 12 Ballistic Cannon 43 | . 2 1 6 6 . 1 1 2 5 . . . . . 1 1 3 . 4 . 1 1 2 1 3 . . 2 . Launcher 17 | . . 1 2 1 . . 1 1 1 1 2 1 . . 1 . . . . . 1 . . . . . . . 4 Special Weapon 22 | . . . . 1 . . . . . . . . 2 1 3 1 1 . 3 . . 1 . . 4 . . 1 4 Impact Weapon . | . . . . . . . . . . . . . . . . . . . . . . . . . . . . . . Slashing Weapon 2 | . . . 1 . . . . . . . . . . . 1 . . . . . . . . . . . . . . Piercing Weapon 13 | . . . . . . . . . . . . . . 1 4 . 2 . 1 . 1 . . . . . . 1 3 Special Melee Weapon 11 | . . . 1 2 . 1 . 1 2 . . . 2 . . . 1 . 1 . . . . . . . . . . Unidentified Prototypes 23 | . . . . 1 . . . . . . . . 2 . 9 . 1 . 1 . 2 2 1 . . 3 . . 1 Corrupted Parts 4 | . . . . . . . . . . . . . . 2 . . . . . . . . 2 . . . . . . System Corruption 30 | . . . . . . . . . . . . . . 21 . . . . . . . . 9 . . . . . . Parts Lost 73 | . . . 5 . . . 2 . 2 1 . . . . 1 . 1 . 2 . . 1 . 8 8 . . . 42 Power 8 | . . . 2 . . . . . . . . . . . . . . . . . . 1 . . . . . . 5 Propulsion 16 | . . . 2 . . . 1 . 1 1 . . . . . . . . . . . . . 1 1 . . . 9 Utility 42 | . . . . . . . . . . . . . . . 1 . 1 . 2 . . . . 6 7 . . . 25 Weapon 7 | . . . 1 . . . 1 . 1 . . . . . . . . . . . . . . 1 . . . . 3 Highest Loss Streak 16 | . . . 2 . . . 2 . 1 1 . . . . 1 . 1 . 2 . . 1 . 3 2 . . . 16 To Critical Strikes 2 | . . . . . . . . . . . . . . . . . . . . . . . . . . . . . 2 Average Slot Usage (%) 88 | . 92 100 94 73 73 73 71 75 71 75 84 93 99 99 99 93 93 100 91 92 93 98 93 91 89 90 84 82 75 Engine 6 | . 14 14 13 6 6 6 6 6 6 6 7 7 7 7 11 6 10 12 12 11 7 . . . . . . . . Core 1 | . . . . . . . . . . . . . . . . 6 1 . . . 3 9 5 5 5 9 9 4 2 Reactor 1 | . . . . . . . . . . . . . . . . . . . . . . 1 4 5 4 4 4 7 6 Treads 12 | . 27 28 21 19 20 20 16 12 1 . . . . 22 24 13 12 12 12 11 11 11 10 9 7 4 8 12 13 Leg 8 | . . . . 12 13 13 13 12 13 17 15 24 30 7 . . . . . . . . . . . . . . . Wheel 4 | . . . 1 . . . . . . . . . . . 1 13 13 18 18 16 16 16 16 16 17 18 7 . . Device 8 | . . . . . . . . 6 9 6 6 6 6 6 12 5 12 12 10 17 21 16 15 22 20 22 20 21 15 Storage 6 | . 14 14 14 6 6 6 6 6 6 6 7 7 7 7 6 6 6 6 6 5 5 5 5 5 5 4 4 4 2 Processor 13 | . 7 14 10 . . . . 6 13 18 23 23 23 23 20 20 12 12 12 12 11 11 11 3 6 11 9 10 15 Protection 9 | . . . 3 13 13 13 13 12 4 6 7 7 7 7 6 13 13 12 12 10 11 16 15 16 16 10 14 16 9 Energy Cannon 4 | . . . . . . . . . 4 12 14 14 9 13 11 . . . . . . . . . . . . . 3 Ballistic Gun 1 | . 2 . . 2 6 6 6 6 1 . . . . . . . . . . . . 6 . . . . . . 2 Ballistic Cannon 5 | . 22 27 19 9 6 2 6 5 6 . . . . . . 5 5 . 5 5 4 1 4 5 4 4 4 3 . Naked Turns 10 | . . . . . . . . . . . . . . . . . . . . . . . . . . . . . 10 Heaviest Build 193 | 13 29 29 95 106 104 104 105 106 106 104 105 114 116 124 142 144 148 128 146 152 160 166 168 169 167 183 188 193 186 Greatest Support 320 | 40 40 40 40 100 100 100 100 100 100 120 70 80 80 88 88 40 60 60 60 60 60 60 60 60 76 76 240 240 320 Greatest Overweight (x) 55 | . . . 4 5 1 1 1 1 1 1 1 2 36 5 3 3 3 2 2 2 2 2 55 2 2 2 4 . 8 Average Overweight (x) 1 | . . . . 1 1 1 1 1 . . 1 1 4 1 1 3 2 2 2 2 2 2 22 2 1 2 . . . Largest Inventory Capacity 25 | 8 15 15 25 25 25 25 25 25 25 25 25 25 25 25 25 25 25 25 25 25 25 25 25 25 25 25 25 25 25 Average Capacity 23 | 8 10 15 16 25 25 25 25 25 25 25 25 25 25 25 25 25 25 25 25 25 25 25 25 25 25 25 25 25 22 Most Carried 25 | 6 10 12 23 25 25 25 25 25 25 25 25 25 25 25 25 25 25 24 25 25 25 25 25 25 25 22 25 25 25 Average Carried 22 | 6 8 10 14 23 24 25 24 24 24 24 25 24 24 24 23 24 24 24 23 23 24 24 24 24 22 18 24 23 20 Final Capacity 25 | 8 15 15 25 25 25 25 25 25 25 25 25 25 25 25 25 25 25 25 25 25 25 25 25 25 25 25 25 25 5 Final Carried 25 | 6 10 12 23 25 25 25 25 25 25 25 25 25 25 25 25 25 24 24 24 25 25 25 25 23 18 22 25 25 5 Class Distribution -------------------- 32% | Scavenger-Mutant 32% | Mutant 27% | Derelict-Mutant 3% | Scavenger-Skirmisher Dominant Class ---------------- Mutant | -10/Materials Mutant | -10/Mines Mutant | -10/Subcaves Derelict-Mutant | -9/Materials Derelict-Mutant | -9/Mines Mutant | -9/Exiles Mutant | -8/Mines Mutant | -8/Materials Mutant | -8/Storage Mutant | -7/Factory Mutant | -7/Lower Caves Derelict-Mutant | -7/Lower Caves Derelict-Mutant | -7/Zion Scavenger-Mutant | -6/Proximity Caves Scavenger-Mutant | -6/Factory Mutant | -6/Lower Caves Scavenger-Mutant | -6/Lower Caves Scavenger-Mutant | -6/Data Miner Scavenger-Mutant | -5/Proximity Caves Scavenger-Mutant | -5/Factory Commander-Mutant | -5/Extension Commander-Mutant | -5/Cetus Scavenger-Mutant | -5/Archives Scavenger-Mutant | -5/Hub_04(d) Scavenger-Mutant | -4/Factory Scavenger-Mutant | -3/Research Scavenger-Mutant | -3/DSF Scavenger-Skirmisher | -2/Research Scavenger-Skirmisher | -1/Access Resources | -11 -10 -10 -10 -9 -9 -9 -8 -8 -8 -7 -7 -7 -7 -6 -6 -6 -6 -6 -5 -5 -5 -5 -5 -5 -4 -3 -3 -2 -1 ----------- Run | Jun Mat Min Sub Mat Min Exi Min Mat Sto Fac Low Low Zio Pro Fac Low Low Dat Pro Fac Ext Cet Arc Hub Fac Res DSF Res Acc Matter Collected 13229 | 214 339 244 568 1155 . . 373 274 644 60 70 134 76 200 538 335 442 . 348 115 675 244 396 1557 1814 . 460 351 1603 Remotely 1874 | . . . . . . . . . . . . . . . . . . . . . . . . 545 279 . 282 160 608 Salvage Created 14957 | . 307 125 289 1325 . . 439 340 1175 134 63 118 . 204 464 58 288 . 307 203 399 361 357 795 1483 . 483 400 4840 Parts 747 | . 21 15 19 95 . . 20 28 75 5 4 11 . 13 18 4 12 . 5 6 19 21 15 34 48 . 19 32 208 Haulers Intercepted 19 | . 2 . . 4 . . . 1 5 . . . . . 1 . . . 1 . . . . 1 2 . 1 . 1 Recyclers Shooed 7 | . 2 1 . 1 . . . 1 . . . . . . . . . . . 1 . . . . 1 . . . . Parts Field Recycled . | . . . . . . . . . . . . . . . . . . . . . . . . . . . . . . Retrieved Matter . | . . . . . . . . . . . . . . . . . . . . . . . . . . . . . . Parts Self-Destructed 42 | . . . . . . . . . . . 3 10 . 8 . 4 9 . 8 . . . . . . . . . . Prevented 18 | . . . . . . . . . . . . . . 7 . 4 7 . . . . . . . . . . . . Kills | -11 -10 -10 -10 -9 -9 -9 -8 -8 -8 -7 -7 -7 -7 -6 -6 -6 -6 -6 -5 -5 -5 -5 -5 -5 -4 -3 -3 -2 -1 ------- Run | Jun Mat Min Sub Mat Min Exi Min Mat Sto Fac Low Low Zio Pro Fac Low Low Dat Pro Fac Ext Cet Arc Hub Fac Res DSF Res Acc Combat Hostiles Destroyed 325 | . 12 7 11 29 . . 13 10 25 2 1 4 . 6 13 1 10 . 10 . 10 7 4 22 39 . 8 5 76 Melee 2 | . . . . . . . . . . . . . . . . . . . 1 . . . . . . . . . 1 Guns 36 | . 1 . . 5 . . 4 3 1 . . . . . . . . . . . . . . . . . . . 22 Cannons 174 | . 11 4 6 20 . . 8 4 19 2 1 1 . 4 3 1 3 . 3 . 10 4 4 22 22 . 8 3 11 AOE 98 | . . 3 5 4 . . 1 3 4 . . 3 . 2 9 . 7 . 6 . . 2 . . 17 . . 1 31 Classes Destroyed 33 | . 5 1 2 6 . . 1 . . . 1 . . 1 3 2 1 . 1 . 1 . . 2 3 . . . 3 Worker 13 | . . 1 . 4 . . . . 1 . . . . . . . . . . . . . . . 2 . . . 5 Builder 11 | . . . . 2 . . . . 1 . . . . . . . . . . . 2 . . 1 2 . . 1 2 Tunneler 1 | . . . . 1 . . . . . . . . . . . . . . . . . . . . . . . . . Hauler 19 | . 2 . . 4 . . . 1 5 . . . . . 1 . . . 1 . . . . 1 2 . 1 . 1 Recycler 7 | . . . . 1 . . . . . . . . . . . . . . . 2 . . . . 2 . . . 2 Carrier 1 | . . . . . . . . . . . . . . . . . . . . . . . . . . . . . 1 Minesweeper 2 | . . . . . . . . . . . . . . . . 2 . . . . . . . . . . . . . Mechanic 3 | . . . . . . . . . . . . . . . . . . . . . . . . . 1 . . . 2 Operator 7 | . 1 . . . . . . . . . . . . . . . . . . . . . 4 1 1 . . . . Drone 2 | . . . . . . . . . . . . . . . . . . . 2 . . . . . . . . . . Turret 1 | . . . 1 . . . . . . . . . . . . . . . . . . . . . . . . . . Watcher 21 | . 1 . . 4 . . . 1 2 . . . . . 3 . . . . . . 2 . 3 3 . . 1 1 Swarmer 57 | . 3 3 2 3 . . 3 4 4 . . . . 5 . . 4 . . . 2 3 . 5 . . . . 16 Cutter 1 | . . . . . . . . . . . . . . . . . . . . . . . . . . . . . 1 Saboteur 3 | . . . . . . . . . . . . . . . 1 . . . . . . . . . . . . . 2 Grunt 116 | . 9 4 . 14 . . 8 2 10 . . 2 . . . 1 4 . 7 . 4 3 . 6 16 . . 1 25 Brawler 8 | . . . . 1 . . 1 . . . . . . . . . 1 . . . . . . 1 . . . . 4 Duelist 7 | . . . . 2 . . . . 1 . . 1 . . . . 1 . . . . . . . 1 . . . 1 Protector 4 | . . . . . . . . . . . . . . . 1 . . . . . . . . . 2 . . . 1 Researcher 1 | . . . . . . . . . . . . . . . . . 1 . . . . . . . . . . . . Sentry 44 | . . . . 9 . . . 2 10 2 . . . . 2 . . . 1 . 3 . 4 6 1 . 1 . 3 Specialist 11 | . . . . . . . . . . . . . . . 3 . . . . . . . . 1 4 . 3 . . Hunter 20 | . . . . . . . 1 2 . . 1 1 . . 1 . . . . . . . . . 4 . 2 . 8 Programmer 32 | . . . . . . . . . . . . . . 1 5 . . . . . . . . 2 6 . 2 3 13 Heavy 5 | . . . . . . . . . . . . . . . . . . . . . . . . 1 3 . 1 . . Behemoth 4 | . . . . . . . . . . . . . . . . . . . . . 1 . . . . . . 1 2 Cetus Guard 1 | . . . . . . . . . . . . . . . . . . . . . . 1 . . . . . . . Striker 1 | . . . . . . . . . . . . . . . . . . . . . . . . . 1 . . . . Executioner 1 | . . . . . . . . . . . . . . . . . . . . . . . . . 1 . . . . Subdweller 9 | . . . 9 . . . . . . . . . . . . . . . . . . . . . . . . . . Z-Light 1 | . . . . . . . . . . . . . . . . . . . . . . . . . . . . . 1 Tinkerer 1 | . . . . . . . . . . . 1 . . . . . . . . . . . . . . . . . . Thug 1 | . . . . . . . . . . . . . . . . . . . . . . 1 . . . . . . . Martyr 1 | . . . . . . . . . . . . . . . . . . . . . . . . 1 . . . . . Mutant 2 | . . . . . . . . . . . . . . . . 1 1 . . . . . . . . . . . . Best Kill Streak 22 | . 4 3 3 5 . . 4 5 7 1 1 3 . 3 11 1 4 . 5 2 4 3 5 10 21 . 5 5 22 Combat Bots Only 18 | . 3 3 3 4 . . 4 5 5 1 1 3 . 3 10 1 4 . 4 . 3 3 4 9 17 . 5 4 18 Max Kills in Single Turn 10 | . 1 3 2 3 . . 1 3 4 1 1 3 . 3 4 1 4 . 3 1 1 3 1 1 3 . 1 1 10 Gunslinging 1 | . . . . . . . . . . . . . . . . . . . . . . . . . . . . . 1 Exploded 10 | . . 3 2 3 . . 1 3 4 . . 3 . 2 3 . 4 . 3 . . 2 . . 3 . . 1 10 Melee 1 | . . . . . . . . . . . . . . . . . . . 1 . . . . . . . . . 1 Uniques/NPCs Destroyed . | . . . . . . . . . . . . . . . . . . . . . . . . . . . . . . Combat | -11 -10 -10 -10 -9 -9 -9 -8 -8 -8 -7 -7 -7 -7 -6 -6 -6 -6 -6 -5 -5 -5 -5 -5 -5 -4 -3 -3 -2 -1 -------- Run | Jun Mat Min Sub Mat Min Exi Min Mat Sto Fac Low Low Zio Pro Fac Low Low Dat Pro Fac Ext Cet Arc Hub Fac Res DSF Res Acc Damage Taken 26500 | . 401 128 586 847 . . 628 250 898 248 41 203 . 259 519 . 365 . 869 41 666 613 189 2005 2994 . 507 181 13062 Core 2833 | . 75 32 110 102 . . 92 30 96 17 . . . 51 43 . 28 . 54 21 46 88 . 107 148 . 63 30 1600 Absorbed by Shields 2818 | . . . . . . . . . 58 . . . . . 112 . 63 . 46 . . . . 290 1005 . 180 66 998 Reduced by Siege Mode 146 | . . . . . . . . . . . . . . . . . . . . . . . . . 29 . . . 117 Redirected to Shielding 355 | . . . . . . . . . . . . . . . . . . . . . . . . 13 113 . . . 229 Ignored by Resistances 2780 | . . . . 32 . . 21 17 . . 11 3 . 14 . . 29 . 89 . 84 162 50 184 . . 227 35 1822 Regen/Repaired (Parts) 1114 | . 53 . . . . . . . 80 . . . . . . . . . . 240 . . . . 741 . . . . Core Remaining (%) 76 | 100 . . 13 . . . 51 . 77 . . . . 90 . . . . 85 . . . . 73 87 . 95 97 . Volleys Fired 1005 | . 42 17 46 105 . . 39 24 76 9 6 4 1 12 29 11 21 . 18 10 37 22 31 119 124 . 29 18 155 Largest 2 | . 2 2 2 2 . . 2 2 2 2 2 2 1 2 2 1 1 . 1 1 1 2 1 1 1 . 1 1 2 Hottest 188 | . 70 70 80 100 . . 67 67 136 148 148 148 68 148 148 80 80 . 80 80 80 80 80 80 80 . 80 80 188 Shots Fired 1466 | . 84 33 79 202 . . 75 47 144 18 12 6 1 17 45 11 22 . 18 10 37 31 31 119 126 . 29 18 251 Gun 301 | . 18 . . 44 . . 36 23 4 . . . . . . . . . . . . 21 16 . . . . . 139 Cannon 1090 | . 66 32 72 150 . . 36 23 139 18 12 4 1 16 42 11 19 . 13 10 37 6 15 119 112 . 29 17 91 Launcher 33 | . . 1 7 3 . . 3 1 1 . . 2 . . . . . . . . . 3 . . . . . . 12 Special 42 | . . . . 5 . . . . . . . . . 1 3 . 3 . 5 . . 1 . . 14 . . 1 9 Kinetic 1145 | . 75 32 73 194 . . 72 46 89 . . . . . . 11 19 . 13 10 37 27 31 119 112 . 29 17 139 Thermal 184 | . 9 . 3 5 . . . . 54 18 12 4 1 16 42 . . . . . . . . . . . . . 20 Explosive 63 | . . 1 3 3 . . 3 1 1 . . 2 . 1 3 . 3 . 5 . . 1 . . 14 . . 1 21 Electromagnetic 74 | . . . . . . . . . . . . . . . . . . . . . . 3 . . . . . . 71 Robot Hit Streak 32 | . 12 8 25 8 . . 10 6 14 8 2 3 . 3 9 13 18 . 7 3 8 13 10 16 11 . 8 4 32 Robot Miss Streak 6 | . 5 3 1 4 . . 3 2 6 1 2 1 . 4 2 . 2 . 2 1 1 2 3 5 3 . 2 3 4 Penetration Max 1 | . . . . . . . . . . . . . . . . . . . . . . 1 1 . . . . . 1 Secondary Targets 6 | . . . . . . . . . . . . . . . . . . . . . . . . . . . . . 6 Max Gunslinging Chain 1 | . . . . . . . . . . . . . . . . . . . . . . . . . . . . . 1 Shots Hit Robots 958 | . 52 22 46 119 . 4 47 32 87 15 6 4 2 6 29 6 15 1 14 4 26 22 24 78 88 . 22 11 176 Core Hits 641 | . 19 11 22 55 . . 26 18 45 5 3 9 . 8 28 3 15 . 18 . 10 14 15 25 87 . 9 9 187 Critical Kills 21 | . . . . 1 . . . . 1 . . . . . 1 . . . . . . 1 1 . . . . . 16 Critical Parts Destroyed 30 | . . . . . . . . . . . . . . . . . . . . . . 1 . . . . . . 29 Critical Strikes 116 | . 4 1 . 5 . . 3 1 4 . . . . . 1 3 6 . 3 . 1 3 1 6 16 . 1 . 57 Meltdown 2 | . . . . . . . . . 1 . . . . . 1 . . . . . . . . . . . . . . Destroy 51 | . . . . 1 . . . . . . . . . . . . . . . . . 3 1 . . . . . 46 Blast 43 | . 4 1 . 4 . . 3 1 3 . . . . . . 3 4 . 1 . 1 . . 6 11 . 1 . . Corrupt 8 | . . . . . . . . . . . . . . . . . . . . . . . . . . . . . 8 Sever 10 | . . . . . . . . . . . . . . . . . 1 . 2 . . . . . 5 . . . 2 Impale 2 | . . . . . . . . . . . . . . . . . 1 . . . . . . . . . . . 1 Melee Attacks 62 | . . . 24 . . 4 . . . . . . 2 4 6 . 6 1 5 . 2 . . . . . . 1 7 Impact . | . . . . . . . . . . . . . . . . . . . . . . . . . . . . . . Slashing 22 | . . . 22 . . . . . . . . . . . . . . . . . . . . . . . . . . Piercing 30 | . . . . . . . . . . . . . . 4 6 . 6 . 4 . 2 . . . . . . 1 7 Sneak Attacks 12 | . . . 2 . . 4 . . . . . . 2 . . . 1 1 2 . . . . . . . . . . Combat Hostiles 1 | . . . . . . . . . . . . . . . . . . . 1 . . . . . . . . . . Follow-up Attacks . | . . . . . . . . . . . . . . . . . . . . . . . . . . . . . . Damage Inflicted 60263 | . 950 583 1282 3042 . . 1047 809 2369 347 146 316 . 445 2284 465 1973 . 1964 394 2512 1480 1355 6554 12591 . 2256 1047 14052 Guns 6487 | . 146 . . 548 . . 385 283 62 . . . . . . . . . . . . 423 319 . . . . . 4321 Cannons 31991 | . 778 439 643 1948 . . 439 333 2035 331 146 46 . 113 564 465 835 . 455 394 2478 375 1036 6554 6563 . 2256 767 1998 Explosions 19802 | . . 112 639 356 . . 212 193 239 . . 270 . 262 1560 . 951 . 1234 . . 637 . . 5546 . . 224 7367 Melee 323 | . . . . . . . . . . . . . . 36 . . 82 . 131 . 34 . . . . . . . 40 Ramming 348 | . 26 32 . 155 . . 11 . 33 16 . . . . 39 . . . . . . . . . 10 . . 11 15 Kinetic 34829 | . 831 439 1082 2496 . . 824 616 1300 . . . . . . 465 835 . 455 394 2478 798 1355 6554 6563 . 2256 767 4321 Thermal 2125 | . 93 . . 35 . . . . 797 331 146 46 . 113 564 . . . . . . . . . . . . . . Explosive 18951 | . . 112 200 356 . . 212 193 239 . . 270 . 262 1560 . 951 . 1234 . . 235 . . 5536 . . 224 7367 Electromagnetic 2410 | . . . . . . . . . . . . . . . . . . . . . . 402 . . 10 . . . 1998 Impact . | . . . . . . . . . . . . . . . . . . . . . . . . . . . . . . Slashing 1277 | . . . . . . . . . . . . . . 34 121 . 105 . 144 . . 45 . . 472 . . 45 311 Piercing 323 | . . . . . . . . . . . . . . 36 . . 82 . 131 . 34 . . . . . . . 40 Highest Corruption 21 | . . . . . . . . . . . . . . 21 4 . 9 9 9 . 1 . 8 8 2 . 2 1 11 Average Corruption 5 | . . . . . . . . . . . . . . 17 2 . 9 9 9 . 1 . 4 3 1 . 1 1 4 Corruption Purged 10 | . . . . . . . . . . . . . . . . . . . . . 1 . 9 . . . . . . Corruption Blocked . | . . . . . . . . . . . . . . . . . . . . . . . . . . . . . . Effects 98 | . . . . . . . . . . . . . . 1 2 . 31 5 19 . . . 6 15 6 . 2 2 9 Message Errors 18 | . . . . . . . . . . . . . . . 1 . 6 1 4 . . . 1 1 2 . 1 . 1 Matter Fused 20 | . . . . . . . . . . . . . . . 1 . 6 1 4 . . . 1 3 1 . 1 . 2 Heat Flow Errors 16 | . . . . . . . . . . . . . . . . . 5 1 3 . . . 1 3 . . . 1 2 Energy Discharges 14 | . . . . . . . . . . . . . . 1 . . 2 1 5 . . . 1 3 . . . . 1 Parts Rejected 1 | . . . . . . . . . . . . . . . . . 1 . . . . . . . . . . . . Parts Fused 3 | . . . . . . . . . . . . . . . . . 1 . 1 . . . . . . . . . 1 Data Loss (minor) 12 | . . . . . . . . . . . . . . . . . 5 1 1 . . . 1 2 . . . 1 1 Data Loss (major) 6 | . . . . . . . . . . . . . . . . . 3 . . . . . 1 1 1 . . . . Misfires 4 | . . . . . . . . . . . . . . . . . 1 . . . . . . 1 2 . . . . Alerts 2 | . . . . . . . . . . . . . . . . . 1 . 1 . . . . . . . . . . Weapon Failures 2 | . . . . . . . . . . . . . . . . . . . . . . . . 1 . . . . 1 Overload Shots . | . . . . . . . . . . . . . . . . . . . . . . . . . . . . . . Overflow Damage 3561 | . 2 . 14 44 . . . 8 58 . . . . . 7 45 101 . 124 204 199 28 . 724 1329 . 281 99 294 Projectiles 3078 | . 2 . . 19 . . . 8 33 . . . . . 7 45 89 . 86 204 199 . . 724 1276 . 281 99 6 Explosions 420 | . . . 14 . . . . . 25 . . . . . . . 12 . . . . 28 . . 53 . . . 288 Melee 63 | . . . . 25 . . . . . . . . . . . . . . 38 . . . . . . . . . . Knockbacks 116 | . 5 2 7 14 . . 4 5 11 . . . . . . . 4 . . 2 8 . . 13 30 . 5 6 . Impact 1 | . . . . 1 . . . . . . . . . . . . . . . . . . . . . . . . . Kinetic 100 | . 5 2 7 13 . . 4 5 10 . . . . . . . 4 . . 2 6 . . 9 23 . 5 5 . Secondary 15 | . . . . . . . . . 1 . . . . . . . . . . . 2 . . 4 7 . . 1 . Self-Inflicted Damage 515 | . . . 54 . . . . . 164 . . . . . . . . . . . . . . . 82 . . . 215 Shots 12 | . . . 2 . . . . . 3 . . . . . . . . . . . . . . . 1 . . . 6 Rammed 22 | . 10 5 . . . . . . . . . . . . 3 . . . . . . . . . 1 . . 1 2 Targets Rammed 44 | . 11 5 . 12 . . 2 . 3 1 . . . . 5 . . . . . . . . . 2 . . 1 2 Kicked 18 | . . . . 12 . . 2 . 3 1 . . . . . . . . . . . . . . . . . . . Crushed 4 | . 1 . . . . . . . . . . . . . 2 . . . . . . . . . 1 . . . . Highest Temperature 455 | . 138 171 . 292 . . 125 12 247 153 234 168 16 288 261 230 322 141 220 42 75 80 229 455 125 . 50 177 320 Average Temperature 65 | . 39 58 . 65 . . 42 5 68 67 90 83 12 99 101 74 93 71 45 14 28 37 59 62 44 . 30 69 96 Received Heat Transfer 3854 | . 168 90 132 315 . . 252 90 361 72 . 24 . 36 57 . 102 . 329 . 147 72 27 213 292 . . 38 1037 Effects 7 | . . . . 2 . . . . . . . . . 1 . . . . . . . . . 2 . . . . 2 Shutdowns 1 | . . . . . . . . . . . . . . . . . . . . . . . . 1 . . . . . Energy Bleed 2 | . . . . . . . . . . . . . . 1 . . . . . . . . . . . . . . 1 Interference 3 | . . . . 2 . . . . . . . . . . . . . . . . . . . 1 . . . . . Damage (minor) 1 | . . . . . . . . . . . . . . . . . . . . . . . . . . . . . 1 Siege Activations 11 | . . . . . . . . . . . . . . . . . . . . . . . . . 4 . 1 . 6 Total Turns 185 | . . . . . . . . . . . . . . . . . . . . . . . . . 84 . 2 . 99 Longest Duration 55 | . . . . . . . . . . . . . . . . . . . . . . . . . 55 . 2 . 27 Robots Corrupted 11 | . . . . . . . . . . . . . . . . . . . . . . 1 . . . . . . 10 Combat Hostiles 10 | . . . . . . . . . . . . . . . . . . . . . . 1 . . . . . . 9 Parts Fried 28 | . . . . 1 . . . . . . . . . . . . . . . . . 1 . 2 . . . . 24 Impact Corruptions 10 | . . . . 2 . . . . . . . . . . . . . . . . . . . 2 6 . . . . Robots Melted 2 | . . . . . . . . . 1 . . . . . 1 . . . . . . . . . . . . . . Combat Hostiles 2 | . . . . . . . . . 1 . . . . . 1 . . . . . . . . . . . . . . Parts Melted 13 | . 2 . . . . . . . . 3 . . . . 7 . . . . . . . . . . . . . 1 Heat Transferred 3829 | . 259 . . 240 . . . . 1332 555 222 74 . 185 962 . . . . . . . . . . . . . . Parts Sabotaged 2 | . . . . . . . . . . . . . . . 2 . . . . . . . . . . . . . . Parts Stolen . | . . . . . . . . . . . . . . . . . . . . . . . . . . . . . . Parts Stripped . | . . . . . . . . . . . . . . . . . . . . . . . . . . . . . . Power Chain Reactions . | . . . . . . . . . . . . . . . . . . . . . . . . . . . . . . Missiles Intercepted . | . . . . . . . . . . . . . . . . . . . . . . . . . . . . . . Alert | -11 -10 -10 -10 -9 -9 -9 -8 -8 -8 -7 -7 -7 -7 -6 -6 -6 -6 -6 -5 -5 -5 -5 -5 -5 -4 -3 -3 -2 -1 ------- Run | Jun Mat Min Sub Mat Min Exi Min Mat Sto Fac Low Low Zio Pro Fac Low Low Dat Pro Fac Ext Cet Arc Hub Fac Res DSF Res Acc Peak Influence 2533 | . 190 210 . 471 138 . 381 362 562 209 . . . . 261 . . . . 600 788 896 530 531 1177 588 648 627 2533 Initial 588 | . . 11 . . 138 . . 31 91 149 . . . . . . . . . 531 184 440 358 . 231 588 441 364 256 Average 321 | . 74 65 . 235 56 . 184 203 262 99 . . . . 39 . . . . 538 404 659 177 234 562 588 567 453 1316 Maximum Alert Level 5 | . . 1 . 2 . . 1 1 2 1 . . . . 1 . . . . 2 3 3 2 2 4 2 2 2 5 Low Security (%) 48 | 100 100 80 . 48 100 . 70 48 31 98 . . . . 93 . . . . . 7 . 66 47 . . . . . Level 1 24 | . . 19 . 41 . . 29 51 51 1 . . . . 6 . . . . 12 56 . 18 26 19 . . 29 5 Level 2 18 | . . . . 10 . . . . 17 . . . . . . . . . . 87 24 47 15 25 67 100 100 70 13 Level 3 3 | . . . . . . . . . . . . . . . . . . . . . 10 51 . . 8 . . . 24 Level 4 2 | . . . . . . . . . . . . . . . . . . . . . . . . . 5 . . . 25 Level 5 1 | . . . . . . . . . . . . . . . . . . . . . . . . . . . . . 13 High Security 1 | . . . . . . . . . . . . . . . . . . . . . . . . . . . . . 17 Max Security . | . . . . . . . . . . . . . . . . . . . . . . . . . . . . . . Sterilizations 1 | . . . . . . . . . . . . . . . . . . . . . . . . . . . 1 . . Squads Dispatched 55 | . 4 . . 3 . . . . 4 2 . . . . 2 . . . . 1 1 . . 3 5 . 2 1 27 Investigation 9 | . 2 . . 2 . . . . 1 2 . . . . . . . . . . . . . . . . . . 2 Extermination 8 | . . . . . . . . . . . . . . . 1 . . . . 1 . . . 1 2 . . 1 2 Reinforcement 16 | . 2 . . 1 . . . . . . . . . . 1 . . . . . . . . 1 2 . 2 . 7 Assault 18 | . . . . . . . . . . . . . . . . . . . . . 1 . . 1 1 . . . 15 Garrison 4 | . . . . . . . . . 3 . . . . . . . . . . . . . . . . . . . 1 Intercept . | . . . . . . . . . . . . . . . . . . . . . . . . . . . . . . Searches Triggered 1 | . . . . . . . . . . . . . . . . . . . . 1 . . . . . . . . . Data Miner Redirects 4 | . . . . . . . . . . . . . . . . . . . . . . . . . 1 . . . 3 Construction Impeded 3 | . . . . . . . . . . . . . . . . . . . . . . . . . . . . . 3 Haulers Reinforced 3 | . . . . . . . . . . . . . . . . . . . . . . . . . 1 . . . 2 Active Scanning Responses . | . . . . . . . . . . . . . . . . . . . . . . . . . . . . . . Cargo Convoy Interrupts 2 | . . . . . . . . . . . . . . . 1 . . . . . . . . . 1 . . . . Stealth | -11 -10 -10 -10 -9 -9 -9 -8 -8 -8 -7 -7 -7 -7 -6 -6 -6 -6 -6 -5 -5 -5 -5 -5 -5 -4 -3 -3 -2 -1 --------- Run | Jun Mat Min Sub Mat Min Exi Min Mat Sto Fac Low Low Zio Pro Fac Low Low Dat Pro Fac Ext Cet Arc Hub Fac Res DSF Res Acc Distress Signals 19 | . 2 . . 3 . . . 2 3 . . . . . . . . . . . 2 2 . 1 . . . 1 3 Communications Jammed 117 | . . . . . . . . . . . . . . . . . . . . . 4 . . 73 40 . . . . Distress Signals 80 | . . . . . . . . . . . . . . . . . . . . . 4 . . 53 23 . . . . Times Spotted 510 | . 26 6 19 54 . . 17 14 29 3 1 5 . 7 23 2 9 . 11 4 28 18 12 35 48 . 7 9 123 Peak Tracking Total 15 | . 5 3 6 5 . . 5 5 7 1 1 3 . 3 12 1 4 . 5 3 6 5 1 9 15 . 4 4 15 Tactical Retreats 23 | . . . 1 1 . . 4 1 . . . . . . . 1 1 . . . 2 . . 6 2 . . . 4 Traps | -11 -10 -10 -10 -9 -9 -9 -8 -8 -8 -7 -7 -7 -7 -6 -6 -6 -6 -6 -5 -5 -5 -5 -5 -5 -4 -3 -3 -2 -1 ------- Run | Jun Mat Min Sub Mat Min Exi Min Mat Sto Fac Low Low Zio Pro Fac Low Low Dat Pro Fac Ext Cet Arc Hub Fac Res DSF Res Acc Traps Triggered 5 | . 1 . . . . . . . 2 . . . . . . . . . . . 1 . . . . . 1 . . Indirectly . | . . . . . . . . . . . . . . . . . . . . . . . . . . . . . . Trap Hack Attempts 154 | . . . . 83 . . . 6 65 . . . . . . . . . . . . . . . . . . . . Triggered . | . . . . . . . . . . . . . . . . . . . . . . . . . . . . . . Disarmed . | . . . . . . . . . . . . . . . . . . . . . . . . . . . . . . Reprogrammed 14 | . . . . 8 . . . 1 5 . . . . . . . . . . . . . . . . . . . . Reused 8 | . . . . . . . 4 . . . . . . . . . . . . . 4 . . . . . . . . Traps Extracted 8 | . . . . 4 . . . 1 3 . . . . . . . . . . . . . . . . . . . . Installed 8 | . . . . . . . 4 . . . . . . . . . . . . . 4 . . . . . . . . Triggered 15 | . . . . . . . 4 . . . . . . . . 4 3 . . . 4 . . . . . . . . Most Traps Carried 4 | . . . . 4 4 4 4 1 4 4 4 4 4 4 4 4 4 4 4 4 4 . . . . . . . . Machines | -11 -10 -10 -10 -9 -9 -9 -8 -8 -8 -7 -7 -7 -7 -6 -6 -6 -6 -6 -5 -5 -5 -5 -5 -5 -4 -3 -3 -2 -1 ---------- Run | Jun Mat Min Sub Mat Min Exi Min Mat Sto Fac Low Low Zio Pro Fac Low Low Dat Pro Fac Ext Cet Arc Hub Fac Res DSF Res Acc Machines Disabled 38 | . 1 2 5 2 . . 1 . 4 . 1 . . . . . . . . 2 1 1 5 2 4 . . . 7 Max in Single Turn 3 | . 1 1 2 1 . . 1 . 3 . 1 . . . . . . . . . . . 1 1 2 . . . 2 Garrison Access 6 | . . . . . . . . . . . . . . . 1 . . . . . . . . 1 1 . . . 3 Network Hub 1 | . . . . . . . . . . . . . . . . . . . . . . . . 1 . . . . . Energy Cycler 1 | . . . . . . . . . . . . . . . . . . . . . 1 . . . . . . . . Machines Repaired . | . . . . . . . . . . . . . . . . . . . . . . . . . . . . . . Machines Sabotaged . | . . . . . . . . . . . . . . . . . . . . . . . . . . . . . . Overloaded Fab Kills . | . . . . . . . . . . . . . . . . . . . . . . . . . . . . . . Hacking | -11 -10 -10 -10 -9 -9 -9 -8 -8 -8 -7 -7 -7 -7 -6 -6 -6 -6 -6 -5 -5 -5 -5 -5 -5 -4 -3 -3 -2 -1 --------- Run | Jun Mat Min Sub Mat Min Exi Min Mat Sto Fac Low Low Zio Pro Fac Low Low Dat Pro Fac Ext Cet Arc Hub Fac Res DSF Res Acc Machines Accessed 79 | . 8 . 2 14 . 1 . 6 14 5 1 1 . 1 4 1 . 3 . 3 . 1 . 1 5 1 . 3 4 Terminals 36 | . 5 . . 10 . . . 5 10 3 . . . 1 . . . . . . . 1 . . . 1 . . . Fabricators 6 | . . . . . . . . . . . . . . . 1 . . . . . . . . . 3 . . 1 1 Repair Stations 8 | . 1 . . . . . . . 2 . . . . . 1 . . . . 1 . . . . 1 . . 1 1 Recycling Units 8 | . 2 . . 2 . . . . 1 1 . . . . . . . . . 1 . . . . . . . 1 . Scanalyzers 5 | . . . . 2 . . . 1 . 1 . . . . 1 . . . . . . . . . . . . . . Garrison Access 7 | . . . . . . . . . 1 . . . . . 1 . . . . 1 . . . 1 1 . . . 2 Total Hacks 228 | . 25 . 2 44 . 1 . 20 31 13 1 1 . 1 8 1 . 25 . 6 . 1 . 2 22 1 . 11 12 Successful 106 | . 9 . 2 16 . 1 . 8 13 6 1 1 . 1 3 1 . 25 . 3 . 1 . . 8 1 . 5 1 Failed 121 | . 16 . . 28 . . . 11 18 7 . . . . 5 . . . . 3 . . . 2 14 . . 6 11 Catastrophic 35 | . 1 . . 7 . . . 3 6 1 . . . . 1 . . . . 2 . . . 1 6 . . 2 5 Database Lockouts 1 | . . . . . . . . 1 . . . . . . . . . . . . . . . . . . . . . Manual 157 | . 12 . 1 20 . . . 12 16 8 . . . . 3 . . . . 7 13 . . 34 18 2 . 2 9 Terminals 93 | . 16 . . 30 . . . 18 20 6 . . . 1 . . . . . . . 1 . . . 1 . . . Fabricators 20 | . . . . . . . . . . . . . . . 2 . . . . . . . . . 13 . . 4 1 Repair Stations 28 | . 4 . . . . . . . 5 . . . . . 2 . . . . 2 . . . . 8 . . 5 2 Recycling Units 20 | . 5 . . 6 . . . . 4 1 . . . . . . . . . 2 . . . . . . . 2 . Scanalyzers 18 | . . . . 8 . . . 2 . 6 . . . . 2 . . . . . . . . . . . . . . Garrison Access 18 | . . . . . . . . . 2 . . . . . 2 . . . . 2 . . . 2 1 . . . 9 Terminal Hacks 54 | . 4 . 2 6 . 1 . 5 4 1 1 1 . 1 . 1 . 25 . . . 1 . . . 1 . . . Record 9 | . . . 1 . . 1 . . . . . . . 1 . . . 6 . . . . . . . . . . . Part Schematic 11 | . . . . . . . . . . . . . . . . . . 11 . . . . . . . . . . . Robot Schematic 5 | . . . . . . . . . . . . . . . . . . 5 . . . . . . . . . . . Robot Analysis 7 | . 2 . . 1 . . . 3 1 . . . . . . . . . . . . . . . . . . . . Prototype ID Bank 7 | . 1 . . 2 . . . 1 . . . . . . . . . 3 . . . . . . . . . . . Open Door 6 | . . . . . . . . . 2 . 1 1 . . . 1 . . . . . 1 . . . . . . . Open DSF 1 | . . . . . . . . . . . . . . . . . . . . . . . . . . 1 . . . Branch Access Points 1 | . . . . 1 . . . . . . . . . . . . . . . . . . . . . . . . . Unreport Threat 3 | . . . . 1 . . . . 1 1 . . . . . . . . . . . . . . . . . . . Locate Traps 3 | . 1 . . 1 . . . 1 . . . . . . . . . . . . . . . . . . . . . Derelict Proto ID Bank 1 | . . . 1 . . . . . . . . . . . . . . . . . . . . . . . . . . Fabricator Hacks 6 | . . . . . . . . . . . . . . . 1 . . . . . . . . . 1 . . 4 . Network Status 2 | . . . . . . . . . . . . . . . 1 . . . . . . . . . 1 . . . . Load Schematic 2 | . . . . . . . . . . . . . . . . . . . . . . . . . . . . 2 . Build 2 | . . . . . . . . . . . . . . . . . . . . . . . . . . . . 2 . Repair Station Hacks 15 | . 2 . . . . . . . 4 . . . . . 1 . . . . 2 . . . . 4 . . 1 1 Scan Component 9 | . 1 . . . . . . . 2 . . . . . 1 . . . . 1 . . . . 2 . . 1 1 Repair 6 | . 1 . . . . . . . 2 . . . . . . . . . . 1 . . . . 2 . . . . Recycling Unit Hacks 5 | . 2 . . 2 . . . . 1 . . . . . . . . . . . . . . . . . . . . Retrieve Components 5 | . 2 . . 2 . . . . 1 . . . . . . . . . . . . . . . . . . . . Scanalyzer 13 | . . . . 7 . . . 2 . 4 . . . . . . . . . . . . . . . . . . . Insert Component 6 | . . . . 3 . . . 1 . 2 . . . . . . . . . . . . . . . . . . . Analyze 7 | . . . . 4 . . . 1 . 2 . . . . . . . . . . . . . . . . . . . Garrison Access Hacks 1 | . . . . . . . . . . . . . . . 1 . . . . . . . . . . . . . . Seal Access 1 | . . . . . . . . . . . . . . . 1 . . . . . . . . . . . . . . Unauthorized Hacks 12 | . 1 . . 1 . . . 1 4 1 . . . . . . . . . 1 . . . . 3 . . . . Terminals 3 | . . . . . . . . 1 2 . . . . . . . . . . . . . . . . . . . . Botnet 3 | . . . . . . . . 1 2 . . . . . . . . . . . . . . . . . . . . Fabricators 3 | . . . . . . . . . . . . . . . . . . . . . . . . . 3 . . . . Liberate 2 | . . . . . . . . . . . . . . . . . . . . . . . . . 2 . . . . Haulers 1 | . . . . . . . . . . . . . . . . . . . . . . . . . 1 . . . . Repair Stations . | . . . . . . . . . . . . . . . . . . . . . . . . . . . . . . Recycling Units 5 | . 1 . . 1 . . . . 2 . . . . . . . . . . 1 . . . . . . . . . Reject 2 | . . . . . . . . . 1 . . . . . . . . . . 1 . . . . . . . . . Mask 1 | . . . . . . . . . 1 . . . . . . . . . . . . . . . . . . . . Tunnel 2 | . 1 . . 1 . . . . . . . . . . . . . . . . . . . . . . . . . Scanalyzers 1 | . . . . . . . . . . 1 . . . . . . . . . . . . . . . . . . . Extract 1 | . . . . . . . . . . 1 . . . . . . . . . . . . . . . . . . . Garrison Access . | . . . . . . . . . . . . . . . . . . . . . . . . . . . . . . Data Cores Recovered . | . . . . . . . . . . . . . . . . . . . . . . . . . . . . . . Used . | . . . . . . . . . . . . . . . . . . . . . . . . . . . . . . Hacking Detections 60 | . 7 . . 14 . . . 6 11 5 . . . . 3 . . . . 3 . . . 1 4 . . 2 4 Full Trace Events 7 | . . . . 2 . . . . 2 1 . . . . . . . . . . . . . . . . . . 2 Feedback Events . | . . . . . . . . . . . . . . . . . . . . . . . . . . . . . . Feedback Blocked . | . . . . . . . . . . . . . . . . . . . . . . . . . . . . . . Robot Schematics Acquired 5 | . . . . . . . . . . . . . . . . . . 5 . . . . . . . . . . . Robots Built 2 | . . . . . . . . . . . . . . . . . . . . . . . . . . . . 2 . Authchips 1 | . . . . . . . . . . . . . . . . . . . . . . . . . . . . 1 . Time 56 | . . . . . . . . . . . . . . . . . . . . . . . . . . . . 56 . Total Robot Build Rating 12 | . . . . . . . . . . . . . . . . . . . . . . . . . . . . 12 . Part Schematics Acquired 29 | . . . . 2 . . . 1 . 3 . . . . . . . 11 . . 12 . . . . . . . . Parts Built 1 | . . . . . . . . . . . . . . . . . . . . . . . . . . . . 1 . Authchips 1 | . . . . . . . . . . . . . . . . . . . . . . . . . . . . 1 . Time 56 | . . . . . . . . . . . . . . . . . . . . . . . . . . . . 56 . Total Part Build Rating 6 | . . . . . . . . . . . . . . . . . . . . . . . . . . . . 6 . Parts Repaired 6 | . 1 . . . . . . . 2 . . . . . . . . . . 1 . . . . 2 . . . . Time 423 | . 26 . . . . . . . 162 . . . . . . . . . . 19 . . . . 216 . . . . Parts Recycled . | . . . . . . . . . . . . . . . . . . . . . . . . . . . . . . Recycled Matter . | . . . . . . . . . . . . . . . . . . . . . . . . . . . . . . Retrieved Matter . | . . . . . . . . . . . . . . . . . . . . . . . . . . . . . . Retrieved Components 25 | . 13 . . 9 . . . . 3 . . . . . . . . . . . . . . . . . . . . Parts Scanalyzed 5 | . . . . 2 . . . 1 . 2 . . . . . . . . . . . . . . . . . . . Part Schematics Acquired 5 | . . . . 2 . . . 1 . 2 . . . . . . . . . . . . . . . . . . . Parts Damaged 1 | . . . . . . . . 1 . . . . . . . . . . . . . . . . . . . . . Bothacking | -11 -10 -10 -10 -9 -9 -9 -8 -8 -8 -7 -7 -7 -7 -6 -6 -6 -6 -6 -5 -5 -5 -5 -5 -5 -4 -3 -3 -2 -1 ------------ Run | Jun Mat Min Sub Mat Min Exi Min Mat Sto Fac Low Low Zio Pro Fac Low Low Dat Pro Fac Ext Cet Arc Hub Fac Res DSF Res Acc Used RIF Installer . | . . . . . . . . . . . . . . . . . . . . . . . . . . . . . . Robots Hacked 8 | . . . 1 . . 4 . . . . . . 1 . . . . 1 1 . . . . . . . . . . Non-combat 4 | . . . 1 . . 3 . . . . . . . . . . . . . . . . . . . . . . . Combat 4 | . . . . . . 1 . . . . . . 1 . . . . 1 1 . . . . . . . . . . Robot Hacks Applied 10 | . . . 2 . . 4 . . . . . . 2 . . . . 1 1 . . . . . . . . . . parse_system 10 | . . . 2 . . 4 . . . . . . 2 . . . . 1 1 . . . . . . . . . . Relay Couplers Released 6 | . . . . . . . . . . . . . . . . . . . . . . . . 2 1 . . . 3 Machine Destruction 6 | . . . . . . . . . . . . . . . . . . . . . . . . 2 1 . . . 3 Fabnet Peak Effective % . | . . . . . . . . . . . . . . . . . . . . . . . . . . . . . . Robots Rewired 20 | . . . . . . . . . . . . . . . . . . . . . 20 . . . . . . . . Allies Hacked . | . . . . . . . . . . . . . . . . . . . . . . . . . . . . . . Hacks Repelled . | . . . . . . . . . . . . . . . . . . . . . . . . . . . . . . Allies | -11 -10 -10 -10 -9 -9 -9 -8 -8 -8 -7 -7 -7 -7 -6 -6 -6 -6 -6 -5 -5 -5 -5 -5 -5 -4 -3 -3 -2 -1 -------- Run | Jun Mat Min Sub Mat Min Exi Min Mat Sto Fac Low Low Zio Pro Fac Low Low Dat Pro Fac Ext Cet Arc Hub Fac Res DSF Res Acc Total Allies 57 | . . 3 . . 3 . . . . . . . 7 . . . . . 1 3 28 . . 3 2 1 . 2 4 Largest Group 22 | . . 3 3 . 3 3 . . . . . . 7 7 . . . . 1 3 22 14 2 2 2 2 1 2 4 Highest-Rated Group 742 | . . 40 40 . 76 76 . . . . . . 238 238 . . . . 96 210 742 448 58 70 98 76 49 108 372 Highest-Rated Ally 115 | . . 16 16 . 31 31 . . . . . . 41 41 . . . . 96 96 85 70 39 35 49 49 49 54 115 Zionite Dispatches 9 | . . . . . . . . . . . . . . . . . . . . 1 3 . . 2 . 1 . . 2 Heavy 1 | . . . . . . . . . . . . . . . . . . . . . 1 . . . . . . . . Light 3 | . . . . . . . . . . . . . . . . . . . . 1 1 . . . . . . . 1 Demo 1 | . . . . . . . . . . . . . . . . . . . . . . . . 1 . . . . . Thermal Resupply 1 | . . . . . . . . . . . . . . . . . . . . . . . . 1 . . . . . Defense Resupply 1 | . . . . . . . . . . . . . . . . . . . . . . . . . . 1 . . . Infowar Resupply 2 | . . . . . . . . . . . . . . . . . . . . . 1 . . . . . . . 1 Total Orders 14 | . . . . . . . . . . . . . . . 1 . . . . 1 4 2 . 1 1 2 . . 2 STAY 5 | . . . . . . . . . . . . . . . . . . . . . 2 2 . . . 1 . . . DROP 3 | . . . . . . . . . . . . . . . . . . . . . 1 . . . . 1 . . 1 RETURN 6 | . . . . . . . . . . . . . . . 1 . . . . 1 1 . . 1 1 . . . 1 Ally Attacks 452 | . . . 27 . . . . . . . . . . 34 . . . . 22 27 188 61 2 5 10 . 10 23 43 Total Damage 10763 | . . . 349 . . . . . . . . . . 718 . . . . 644 686 4659 936 . 166 525 . 212 382 1486 Kills 63 | . . . 4 . . . . . . . . . . 2 . . . . 3 4 26 12 . 1 4 . . 2 5 Allies Corrupted 3 | . . . . . . . . . . . . . . 1 . . . . . . . . . . . . . . 2 Allies Melted 1 | . . . . . . . . . . . . . . . . . . . . . 1 . . . . . . . . Intel | -11 -10 -10 -10 -9 -9 -9 -8 -8 -8 -7 -7 -7 -7 -6 -6 -6 -6 -6 -5 -5 -5 -5 -5 -5 -4 -3 -3 -2 -1 ------- Run | Jun Mat Min Sub Mat Min Exi Min Mat Sto Fac Low Low Zio Pro Fac Low Low Dat Pro Fac Ext Cet Arc Hub Fac Res DSF Res Acc Robot Analysis Total 7 | . 2 . . 1 . . . 3 1 . . . . . . . . . . . . . . . . . . . . Derelict Logs Recovered 12 | . . 1 2 . 2 . . . . . 1 1 1 1 . 2 . . 1 . . . . . . . . . . Drone Launches 7 | . . . . . . . . . . . . . . . 1 . . . . 1 1 . . 1 1 . . . 2 Drone Recoveries 7 | . . . . . . . . . . . . . . . 1 . . . . 1 1 . . 1 1 . . . 2 Zionite Intel Received 13 | . . . . . . . . . . . . . . . . . . . . 1 1 . . 8 2 . . . 1 Main Access 1 | . . . . . . . . . . . . . . . . . . . . . . . . 1 . . . . . Branch Access 1 | . . . . . . . . . . . . . . . . . . . . . . . . 1 . . . . . Emergency Access 2 | . . . . . . . . . . . . . . . . . . . . . . . . 1 . . . . 1 Component Stockpiles 2 | . . . . . . . . . . . . . . . . . . . . . . . . 1 1 . . . . Prototype Stockpiles 1 | . . . . . . . . . . . . . . . . . . . . . . . . 1 . . . . . Prototype Schematics 1 | . . . . . . . . . . . . . . . . . . . . . 1 . . . . . . . . Trap Installations 1 | . . . . . . . . . . . . . . . . . . . . 1 . . . . . . . . . Active Terminals 1 | . . . . . . . . . . . . . . . . . . . . . . . . 1 . . . . . Depthwide Sectors/0 1 | . . . . . . . . . . . . . . . . . . . . . . . . 1 . . . . . Depthwide Sectors/-1 2 | . . . . . . . . . . . . . . . . . . . . . . . . 1 1 . . . . Exploration | -11 -10 -10 -10 -9 -9 -9 -8 -8 -8 -7 -7 -7 -7 -6 -6 -6 -6 -6 -5 -5 -5 -5 -5 -5 -4 -3 -3 -2 -1 ------------- Run | Jun Mat Min Sub Mat Min Exi Min Mat Sto Fac Low Low Zio Pro Fac Low Low Dat Pro Fac Ext Cet Arc Hub Fac Res DSF Res Acc Turns Passed 37452 | 5 1231 820 2690 3543 982 335 965 614 1609 695 1581 2053 3605 2271 1665 1782 1021 113 517 455 1337 274 2368 958 1620 123 207 403 1610 Spaces Moved 16316 | 2 615 463 1316 1575 543 182 453 267 623 347 805 986 982 928 544 1142 613 87 312 293 710 156 183 430 823 78 74 198 586 Core 197 | . . . . . . . . . . . . . 86 . . . . . . . . . 70 . . . . . 41 Treads 4154 | 2 615 463 1124 . . . . . . . . . . 688 478 . . . . . . . . . . . 41 198 545 Legs 6911 | . . . . 1569 543 182 453 267 623 347 805 986 896 240 . . . . . . . . . . . . . . . Wheels 5054 | . . . 192 6 . . . . . . . . . . 66 1142 613 87 312 293 710 156 113 430 823 78 33 . . Hover . | . . . . . . . . . . . . . . . . . . . . . . . . . . . . . . Flight . | . . . . . . . . . . . . . . . . . . . . . . . . . . . . . . Fastest Speed 50 | 160 160 160 120 160 180 180 180 180 90 90 190 190 207 206 150 150 130 130 130 130 130 130 130 130 110 130 130 160 50 Average Speed 190 | 160 160 160 181 179 180 180 180 180 123 183 190 200 350 233 230 150 149 130 130 130 130 130 1151 130 129 130 148 160 154 Slowest Speed 2800 | 160 160 160 240 180 180 180 180 180 180 190 190 275 1850 480 246 150 150 130 130 130 130 130 2800 130 130 130 170 160 450 Overloaded Moves . | . . . . . . . . . . . . . . . . . . . . . . . . . . . . . . Propulsion Burnouts . | . . . . . . . . . . . . . . . . . . . . . . . . . . . . . . Robots Hopped . | . . . . . . . . . . . . . . . . . . . . . . . . . . . . . . Cave-ins Triggered . | . . . . . . . . . . . . . . . . . . . . . . . . . . . . . . Exploration Rate (%) 60 | 2 85 100 73 95 98 60 69 22 92 14 97 93 89 94 14 99 77 74 56 10 84 62 68 53 23 2 83 5 21 Regions Visited 29 Branch Regions 18 Pre-discovered Areas 28 | . 1 . 2 1 1 1 . . . . . 1 3 . . . . 1 . . . . . 14 3 . . . . Known Exits Taken 17 | . . . . 1 . . . . . 1 1 1 1 1 1 1 1 1 1 1 1 1 1 1 . 1 . . . Unknown Exits Taken 11 | 1 1 1 1 . 1 1 1 1 1 . . . . . . . . . . . . . . . 1 . . 1 . Scrap Searched 39 | . . 3 7 . 1 . 1 . . . 4 2 4 2 . 2 11 . 2 . . . . . . . . . . Spaces Dug 86 | . . . 4 9 . . . . 1 . . . . 4 11 5 5 . 3 5 1 . . 20 5 . . 1 12 Terrain Destroyed 772 | . . 5 54 25 . . 15 8 24 1 2 17 . 15 31 5 51 . 82 6 7 26 4 33 163 . 5 15 178 Melee 14 | . . . 4 . . . . . . . . . . . 6 . 4 . . . . . . . . . . . . Projectile 181 | . . . . 15 . . 3 . 5 1 2 1 . 4 5 5 8 . 7 6 7 7 4 33 33 . 5 8 22 AOE 577 | . . 5 50 10 . . 12 8 19 . . 16 . 11 20 . 39 . 75 . . 19 . . 130 . . 7 156 Terrain Rammed . | . . . . . . . . . . . . . . . . . . . . . . . . . . . . . . Walls Destroyed . | . . . . . . . . . . . . . . . . . . . . . . . . . . . . . . Machines Disabled . | . . . . . . . . . . . . . . . . . . . . . . . . . . . . . . Actions | -11 -10 -10 -10 -9 -9 -9 -8 -8 -8 -7 -7 -7 -7 -6 -6 -6 -6 -6 -5 -5 -5 -5 -5 -5 -4 -3 -3 -2 -1 --------- Run | Jun Mat Min Sub Mat Min Exi Min Mat Sto Fac Low Low Zio Pro Fac Low Low Dat Pro Fac Ext Cet Arc Hub Fac Res DSF Res Acc Total 21116 | 3 776 506 1516 2072 548 187 528 355 1315 387 842 1054 1141 1004 885 1200 682 87 397 355 1080 207 416 719 1281 100 149 269 1055 Wait 2470 | . 84 16 88 246 4 . 22 41 508 13 22 51 133 26 217 28 11 . 22 35 120 9 175 131 248 8 16 15 181 Move 16287 | 1 614 462 1315 1574 542 181 452 266 622 346 804 985 981 927 543 1141 612 86 311 292 709 155 182 429 822 77 73 197 586 Hop . | . . . . . . . . . . . . . . . . . . . . . . . . . . . . . . Pick Up 169 | . 8 3 16 16 1 . 2 4 9 5 1 1 6 4 11 7 5 . 7 3 8 5 2 9 13 4 6 6 7 Fast Attach 118 | . 4 . 3 2 . . . . 4 2 1 3 1 4 14 . 4 . 6 3 6 2 10 3 9 4 6 4 23 Attach 115 | . . . 4 8 . . 1 2 2 2 . . . 1 8 3 9 . 10 2 4 2 4 6 19 2 . 8 18 Detach 70 | . 2 . 2 4 . . . . . 1 . 1 1 . 8 . 4 . 5 3 1 . 3 1 9 4 2 5 14 Swap 264 | 2 3 2 11 13 . 2 5 8 13 4 6 8 8 18 22 3 5 . 4 3 15 4 1 16 20 . 7 7 54 Drop 188 | . 8 1 7 9 1 . 1 4 12 4 2 1 8 8 22 7 5 . 9 4 14 8 8 5 15 1 10 6 8 Fire 1005 | . 42 17 46 105 . . 39 24 76 9 6 4 1 12 29 11 21 . 18 10 37 22 31 119 124 . 29 18 155 Melee 62 | . . . 24 . . 4 . . . . . . 2 4 6 . 6 1 5 . 2 . . . . . . 1 7 Ram . | . . . . . . . . . . . . . . . . . . . . . . . . . . . . . . Kick 18 | . . . . 12 . . 2 . 3 1 . . . . . . . . . . . . . . . . . . . Crush 26 | . 11 5 . . . . . . . . . . . . 5 . . . . . . . . . 2 . . 1 2 Escape Stasis 9 | . . . . . . . . . 1 . . . . . . . . . . . 8 . . . . . . . . Rewire 153 | . . . . . . . . . . . . . . . . . . . . . 152 . . . . . . 1 . Trap 162 | . . . . 83 . . 4 6 65 . . . . . . . . . . . 4 . . . . . . . . Miscellaneous . | . . . . . . . . . . . . . . . . . . . . . . . . . . . . . . Route ------- -11/Junkyard -10/Materials (discovered 3 exits: *Mat x2 / [*Min]) -10/Mines (discovered 3 exits: *Mat x2 / *Sub) -10/Subcaves (discovered 2 exits: *Mat / [*Rec]) -9/Materials (discovered 4 exits: *Mat x3 / *Min) -9/Mines (discovered 3 exits: *Mat x2 / *Exi) -9/Exiles -8/Mines (discovered 2 exits: *Mat x2) -8/Materials -8/Storage -7/Factory -7/Lower Caves (discovered 2 exits: *Low / *Zio) -7/Lower Caves (discovered 2 exits: *Fac / *Zio) -7/Zion (discovered 2 exits: Dee / *Pro) -6/Proximity Caves -6/Factory -6/Lower Caves -6/Lower Caves (discovered 2 exits: *Fac / *Dat) -6/Data Miner -5/Proximity Caves -5/Factory (discovered 2 exits: Upp / *Ext) -5/Extension (discovered 3 exits: *Fac x2 / *Cet) -5/Cetus (discovered 2 exits: *Fac / *Arc) -5/Archives -5/Hub_04(d) (discovered 4 exits: *Fac x4) -4/Factory (discovered 2 exits: *Res x2) -3/Research -3/DSF -2/Research -1/Access History --------- Turn | Location | Event 4 | -11/Junkyard | Discovered new exit (range 1) 6 | -11/Junkyard | Entered Materials 310 | -10/Materials | Build established: Mutant 429 | -10/Materials | Repaired Lgt. Treads 581 | -10/Materials | Discovered new exit (range 15) 829 | -10/Materials | Discovered new exit (range 7) 856 | -10/Materials | Discovered new exit (range 13) 1237 | -10/Materials | Entered Mines 1301 | -10/Mines | Discovered new exit (range 8) 1311 | -10/Mines | Discovered new exit (range 6) 1462 | -10/Mines | Learned Materials terminal intel 1911 | -10/Mines | Discovered new exit (range 16) 2033 | -10/Mines | Assisted by bots powering up and referring to "LRC-V3" 2057 | -10/Mines | Entered Subcaves 2057 | -10/Subcaves | Accompanied by 3 allies 2159 | -10/Subcaves | Visited Clippyterm 2212 | -10/Subcaves | Core integrity fell below 50% 2279 | -10/Subcaves | Discovered new exit (range 15) 2857 | -10/Subcaves | Visited 4L-MR0's lab 2884 | -10/Subcaves | Learned location of Storage (-8) 2888 | -10/Subcaves | Found Arachnoskeleton 3312 | -10/Subcaves | Disturbed a concealed Subdweller 3440 | -10/Subcaves | Core integrity fell below 20% 3583 | -10/Subcaves | Learned Materials stockpile data 3606 | -10/Subcaves | Learned location of Zion (-7) 3606 | -10/Subcaves | Met a Zionite searching for "candidates" 4178 | -10/Subcaves | A swath of the cavern ceiling suddenly collapsed 4390 | -10/Subcaves | A Subdweller sparked back to life 4390 | -10/Subcaves | A Subdweller sparked back to life 4390 | -10/Subcaves | A Subdweller sparked back to life 4407 | -10/Subcaves | A swath of the cavern ceiling suddenly collapsed 4418 | -10/Subcaves | Found Arachnoskeleton 4685 | -10/Subcaves | Shifting Twisted Machinery released Spk. Treads 4694 | -10/Subcaves | Shifting Twisted Machinery released Riot Gun 4722 | -10/Subcaves | Discovered new exit (range 11) 4747 | -10/Subcaves | Entered Materials 4747 | -9/Materials | Evolved 2 slots: Propulsion x1, Utility x1 4749 | -9/Materials | Loaded intel: 11 terminal locations 4763 | -9/Materials | Attached Arachnoskeleton, gained temporary slots: Propulsion x3 4764 | -9/Materials | Attached Arachnoskeleton, gained temporary slots: Propulsion x3 5045 | -9/Materials | Build established: Derelict-Mutant 5084 | -9/Materials | Discovered new exit (range 8) 6830 | -9/Materials | Discovered new exit (range 15) 7821 | -9/Materials | Discovered new exit (range 8) 7937 | -9/Materials | Discovered new exit (range 10) 8108 | -9/Materials | Identified exit to Mines 8290 | -9/Materials | Entered Mines 8476 | -9/Mines | Found a damaged Exp. Sensor Array with a note attached 8480 | -9/Mines | Found Prototype Device 8683 | -9/Mines | Discovered new exit (range 7) 8781 | -9/Mines | Discovered new exit (range 6) 8833 | -9/Mines | Learned Materials interactive machine intel 8880 | -9/Mines | Deemed a non-threat by the Exiles lab entrance 9115 | -9/Mines | Received a Mining Laser from a helpful Derelict 9260 | -9/Mines | Discovered new exit (range 5) 9272 | -9/Mines | Entered Exiles 9272 | -9/Exiles | Accompanied by 3 allies 9302 | -9/Exiles | Led the pair of lost Derelicts to a safe place 9319 | -9/Exiles | Met 8R-AWN 9351 | -9/Exiles | Met EX-HEX 9416 | -9/Exiles | Met EX-BIN 9478 | -9/Exiles | Met EX-DEC 9591 | -9/Exiles | Discovered new exit (range 11) 9607 | -9/Exiles | Entered Mines 10029 | -8/Mines | Discovered new exit (range 8) 10225 | -8/Mines | Discovered new exit (range 15) 10276 | -8/Mines | Build established: Mutant 10572 | -8/Mines | Entered Materials 10572 | -8/Materials | Evolved 2 slots: Utility x2 10573 | -8/Materials | Loaded intel: 19 interactive machine locations 10608 | -8/Materials | Discovered new exit (range 16) 10859 | -8/Materials | Identified Exp. Sensor Array 11006 | -8/Materials | Central database locked down 11186 | -8/Materials | Entered Storage 11709 | -8/Storage | Repaired Broken Exp. Sensor Array 11738 | -8/Storage | Repaired Lgt. Armor Plating 12155 | -8/Storage | Garrison activated, responded to threat 12683 | -8/Storage | Discovered new exit (range 19) 12795 | -8/Storage | Entered Factory 12795 | -7/Factory | Evolved 2 slots: Propulsion x1, Utility x1 13279 | -7/Factory | Discovered new exit (range 15) 13306 | -7/Factory | Identified exit to Lower Caves 13490 | -7/Factory | Entered Lower Caves 14723 | -7/Lower Caves | Identified exit to Lower Caves 14896 | -7/Lower Caves | A Derelict revealed a hidden shortcut to a safe place 14898 | -7/Lower Caves | Identified exit to Zion 15071 | -7/Lower Caves | Entered another Lower Caves area 15100 | -7/Lower Caves | Discovered new exit (range 6) 15143 | -7/Lower Caves | Identified exit to Factory 15266 | -7/Lower Caves | Encountered a Warlord checkpoint 16156 | -7/Lower Caves | Build established: Derelict-Mutant 16963 | -7/Lower Caves | Discovered exit to Zion (range 7) 17058 | -7/Lower Caves | Spotted B-75 Beast 17124 | -7/Lower Caves | Entered Zion 17168 | -7/Zion | Found CR-A16's Pointy Stick 17334 | -7/Zion | Discovered new exit (range 16) 17873 | -7/Zion | Gained Derelict followers 17974 | -7/Zion | Learned location of Warlord (-4) 18138 | -7/Zion | Given the Hacking Drone Bay 18138 | -7/Zion | Found Prototype Device 18139 | -7/Zion | Identified Hacking Drone Bay 18294 | -7/Zion | Imprinted 18296 | -7/Zion | Declared Zion's savior 18504 | -7/Zion | Found Prototype Special Weapon 18504 | -7/Zion | Identified RU-N14's Throwing Claymores 18509 | -7/Zion | Found RU-N14's Throwing Claymores 18512 | -7/Zion | Found RU-N14's Throwing Claymores 18516 | -7/Zion | Found RU-N14's Throwing Claymores 18552 | -7/Zion | Identified exit to Deep Caves 20725 | -7/Zion | Identified exit to Proximity Caves 20729 | -7/Zion | Entered Proximity Caves 20729 | -6/Proximity Caves | Accompanied by 7 allies 20764 | -6/Proximity Caves | Learned 4 Factory zone layouts 21126 | -6/Proximity Caves | Spotted B-75 Beast 21151 | -6/Proximity Caves | Allies destroyed B-75 Beast 21460 | -6/Proximity Caves | Build established: Scavenger-Mutant 21661 | -6/Proximity Caves | Discovered exit to Factory (range 10) 22994 | -6/Proximity Caves | System corruption reached 10% 23000 | -6/Proximity Caves | Entered Factory 23000 | -6/Factory | Evolved 2 slots: Power x1, Utility x1 24305 | -6/Factory | Terminal network hard line cut 24457 | -6/Factory | Discovered new exit (range 8) 24472 | -6/Factory | Identified exit to Lower Caves 24482 | -6/Factory | Cargo convoy interrupted 24514 | -6/Factory | Found Prototype Slashing Weapon 24514 | -6/Factory | Identified Molecular Scythe 24527 | -6/Factory | Destroyed 10 combat bots 24535 | -6/Factory | Found Molecular Scythe 24563 | -6/Factory | Found Prototype Device 24563 | -6/Factory | Identified Exp. Focal Shield 24665 | -6/Factory | Entered Lower Caves 24683 | -6/Lower Caves | Learned Factory stockpile data 24784 | -6/Lower Caves | Encountered a Warlord checkpoint 24814 | -6/Lower Caves | Learned Factory machine intel 24975 | -6/Lower Caves | Build established: Mutant 25730 | -6/Lower Caves | Discovered new exit (range 9) 26446 | -6/Lower Caves | Identified exit to Lower Caves 26447 | -6/Lower Caves | Entered another Lower Caves area 26468 | -6/Lower Caves | Discovered new exit (range 15) 26490 | -6/Lower Caves | Identified exit to Factory 26755 | -6/Lower Caves | Build established: Scavenger-Mutant 26972 | -6/Lower Caves | Encountered a Warlord checkpoint 27389 | -6/Lower Caves | Discovered new exit (range 8) 27430 | -6/Lower Caves | Found Alien Artifact 27430 | -6/Lower Caves | Identified Core Expander 27430 | -6/Lower Caves | Installed Core Expander, added new Propulsion slot 27458 | -6/Lower Caves | Identified exit to Data Miner 27468 | -6/Lower Caves | Entered Data Miner 27468 | -6/Data Miner | Discovered new exit (range 6) 27493 | -6/Data Miner | Met Data Miner 27533 | -6/Data Miner | Learned location of Section 7 (-2) 27533 | -6/Data Miner | Acquired the access code to Warlord's prototype stash 27553 | -6/Data Miner | Received God Mode back door access code from Data Miner 27580 | -6/Data Miner | Identified exit to Proximity Caves 27581 | -6/Data Miner | Entered Proximity Caves 27584 | -5/Proximity Caves | Spotter reported a threat 27584 | -5/Proximity Caves | Spotter reported a threat 27747 | -5/Proximity Caves | Escorted by Enhanced Grunt 27748 | -5/Proximity Caves | Spotter reported a threat 27897 | -5/Proximity Caves | Spotted B-75 Beast 27918 | -5/Proximity Caves | Allies destroyed B-75 Beast 28016 | -5/Proximity Caves | Discovered exit to Factory (range 10) 28039 | -5/Proximity Caves | Found Imp. Powered Armor 28098 | -5/Proximity Caves | Entered Factory 28098 | -5/Factory | Accompanied by 1 ally 28098 | -5/Factory | Evolved 2 slots: Utility x2 28099 | -5/Factory | Identified exit to Upper Caves 28101 | -5/Factory | Loaded intel: 254 machine locations 28341 | -5/Factory | Repaired Arm. Treads 28398 | -5/Factory | Search patrols dispatched 28423 | -5/Factory | Discovered new exit (range 13) 28431 | -5/Factory | Retrieved Zion intel report: Trap Installations 28432 | -5/Factory | Zion Light squad teleported in 28551 | -5/Factory | Identified exit to Extension 28553 | -5/Factory | Entered Extension 28553 | -5/Extension | Accompanied by 3 allies 28614 | -5/Extension | Zion Infowar Resupply teleported in 28635 | -5/Extension | Found Prototype Protection 28636 | -5/Extension | Identified Zio. Weapon Casing 28858 | -5/Extension | Zion Heavy squad teleported in 28992 | -5/Extension | Energy Cycler disabled 28992 | -5/Extension | Rescued a captive Derelict 28992 | -5/Extension | Rescued a captive Derelict 28992 | -5/Extension | Rescued a captive Derelict 28994 | -5/Extension | Rescued a captive Derelict 29010 | -5/Extension | Rescued a captive Derelict 29333 | -5/Extension | Spotted B-75 Beast 29341 | -5/Extension | Spotted B-75 Beast 29349 | -5/Extension | Revealed the true nature of CR-A16's Pointy Stick 29352 | -5/Extension | Allies destroyed B-75 Beast 29363 | -5/Extension | Discovered new exit (range 12) 29367 | -5/Extension | Destroyed B-75 Beast 29393 | -5/Extension | Build established: Commander-Mutant 29439 | -5/Extension | Extracted ID and sensor layout for unrecognized location from A7's data core 29547 | -5/Extension | Zion Light squad teleported in 29573 | -5/Extension | Retrieved Zion intel report: Prototype Schematics 29753 | -5/Extension | First assault squad dispatched 29838 | -5/Extension | Discovered new exit (range 10) 29839 | -5/Extension | Discovered new exit (range 6) 29847 | -5/Extension | Identified exit to Cetus 29890 | -5/Extension | Entered Cetus 29890 | -5/Cetus | Accompanied by 14 allies 29908 | -5/Cetus | Spotted Cetus Guard 29908 | -5/Cetus | Spotted Cetus Guard 29911 | -5/Cetus | Spotted Cetus Guard 29911 | -5/Cetus | Spotted Cetus Guard 29915 | -5/Cetus | Destroyed Cetus Guard 29916 | -5/Cetus | Allies destroyed Cetus Guard 29924 | -5/Cetus | Allies destroyed Cetus Guard 29930 | -5/Cetus | Allies destroyed Cetus Guard 29993 | -5/Cetus | Discovered new exit (range 15) 30038 | -5/Cetus | Spotted Cetus Guard 30039 | -5/Cetus | Spotted Cetus Guard 30043 | -5/Cetus | Spotted Cetus Guard 30044 | -5/Cetus | Allies destroyed Cetus Guard 30044 | -5/Cetus | Spotted Cetus Guard 30046 | -5/Cetus | Allies destroyed Cetus Guard 30057 | -5/Cetus | Allies destroyed Cetus Guard 30061 | -5/Cetus | Allies destroyed Cetus Guard 30066 | -5/Cetus | Discovered new exit (range 15) 30073 | -5/Cetus | Scared off Revision 17 30161 | -5/Cetus | Identified exit to Archives 30164 | -5/Cetus | Entered Archives 30164 | -5/Archives | Accompanied by 2 allies 30275 | -5/Archives | Discovered new exit (range 15) 30442 | -5/Archives | Build established: Scavenger-Mutant 32504 | -5/Archives | Identified exit to Hub_04(d) 32532 | -5/Archives | Entered Hub_04(d) 32612 | -5/Hub_04(d) | Retrieved Zion intel report: Emergency Access 32658 | -5/Hub_04(d) | Retrieved Zion intel report: Prototype Stockpiles 32817 | -5/Hub_04(d) | Retrieved Zion intel report: Depthwide Sectors/0 32929 | -5/Hub_04(d) | Lost 3 parts (3u) 32942 | -5/Hub_04(d) | Destroyed 9 combat bots 32992 | -5/Hub_04(d) | Retrieved Zion intel report: Main Access 32992 | -5/Hub_04(d) | Identified exit to Factory 33103 | -5/Hub_04(d) | Retrieved Zion intel report: Depthwide Sectors/-1 33168 | -5/Hub_04(d) | Retrieved Zion intel report: Active Terminals 33210 | -5/Hub_04(d) | Retrieved Zion intel report: Branch Access 33211 | -5/Hub_04(d) | Zion Demo squad teleported in 33284 | -5/Hub_04(d) | Lost 3 parts (1n2u) 33306 | -5/Hub_04(d) | Retrieved Zion intel report: Component Stockpiles 33307 | -5/Hub_04(d) | Zion Thermal Resupply teleported in 33384 | -5/Hub_04(d) | Network Hub disabled 33490 | -5/Hub_04(d) | Entered Factory 33490 | -4/Factory | Evolved 2 slots: Propulsion x1, Utility x1 33642 | -4/Factory | Incoming assault squad redirected 34018 | -4/Factory | Retrieved Zion intel report: Depthwide Sectors/-1 34249 | -4/Factory | Discovered new exit (range 7) 34343 | -4/Factory | Repaired Centrium Medium Armor Plating? 34556 | -4/Factory | Repaired Hdn. Centrium Wheel 34799 | -4/Factory | Retrieved Zion intel report: Component Stockpiles 34832 | -4/Factory | Discovered new exit (range 24) 34874 | -4/Factory | Cargo convoy interrupted 34880 | -4/Factory | Spotted Striker 34881 | -4/Factory | Spotted Executioner 34900 | -4/Factory | Destroyed Striker 34902 | -4/Factory | Destroyed Executioner 34968 | -4/Factory | Destroyed 17 combat bots 35026 | -4/Factory | Terminal network hard line cut 35110 | -4/Factory | Entered Research 35110 | -3/Research | Accompanied by 1 ally 35110 | -3/Research | Evolved 2 slots: Power x1, Utility x1 35181 | -3/Research | Zion Defense Resupply teleported in 35184 | -3/Research | Found Prototype Device 35184 | -3/Research | Identified Adv. EM Disruption Field 35188 | -3/Research | Found Prototype Device 35188 | -3/Research | Identified Exp. EM Disruption Field 35229 | -3/Research | Identified exit to DSF 35233 | -3/Research | Entered DSF 35233 | -3/DSF | Accompanied by 1 ally 35269 | -3/DSF | Additional patrols routed to DSF 35416 | -3/DSF | Sterilization system engaged 35416 | -3/DSF | Discovered new exit (range 14) 35436 | -3/DSF | Ambient heat levels rising (+10) 35440 | -3/DSF | Entered Research 35440 | -2/Research | Evolved 2 slots: Utility x2 35651 | -2/Research | Fabricated Mni. Smartbomb Launcher (x1) 35689 | -2/Research | Spotted B-90 Cyclops 35709 | -2/Research | Fabricated P-70 Sage? 35713 | -2/Research | Destroyed B-90 Cyclops 35720 | -2/Research | Discovered new exit (range 13) 35843 | -2/Research | Entered Access 35843 | -1/Access | Accompanied by 1 ally 35843 | -1/Access | Evolved 2 slots: Propulsion x2 36057 | -1/Access | Incoming investigation squad redirected 36062 | -1/Access | Incoming assault squad redirected 36180 | -1/Access | Destroyed 11 combat bots 36559 | -1/Access | Zion Infowar Resupply teleported in 36709 | -1/Access | Retrieved Zion intel report: Emergency Access 36710 | -1/Access | Zion Light squad teleported in 36818 | -1/Access | Build established: Scavenger-Skirmisher 36825 | -1/Access | Found Zio. Weapon Casing 36843 | -1/Access | First assault squad dispatched 36871 | -1/Access | Incoming assault squad redirected 37042 | -1/Access | Lost 7 parts (2p5u) 37075 | -1/Access | Destroyed 18 combat bots 37163 | -1/Access | Terminal network hard line cut 37173 | -1/Access | High security lockdown imminent 37183 | -1/Access | Spotted B-99 Colossus 37204 | -1/Access | Lost 3 parts (1p1n1u) 37229 | -1/Access | Spotted B-99 Colossus 37242 | -1/Access | Destroyed 9 combat bots 37253 | -1/Access | High security lockdown engaged 37254 | -1/Access | Destroyed B-99 Colossus 37271 | -1/Access | Core integrity fell below 50% 37293 | -1/Access | Destroyed B-99 Colossus 37298 | -1/Access | Lost 13 parts (2p3n7u1w) 37311 | -1/Access | Found Hvy. Reflective Plating 37342 | -1/Access | Build established: Scavenger-Mutant 37368 | -1/Access | Found Prototype Ballistic Gun 37368 | -1/Access | Identified Multirail 37377 | -1/Access | Found Hvy. Insulated Plating 37380 | -1/Access | Found Hvy. Reflective Plating 37417 | -1/Access | Spotted Striker 37417 | -1/Access | Spotted Executioner 37423 | -1/Access | System corruption reached 10% 37424 | -1/Access | Destroyed 11 combat bots 37440 | -1/Access | Core integrity fell below 20% 37453 | -1/Access | Destroyed by G-73 Enforcer with Heavy Laser Last Messages --------------- 37436_ Adv. Cooling System destroyed. 37437_ Arm. Heavy Treads destroyed. 37437_ M-36 Artificer repairs Adv. Recalibrator. 37437_ M-36 Artificer fits Backup Propulsion VII on M-36 Artificer. 37437_ L-61 Swordsman destroyed. 37437_ Arm. Heavy Treads destroyed. 37439_ Acquired 84 matter. 37440_ Acquired Unknown Protection. 37440_ Identified Imp. Core Shielding. 37440_ Adv. Target Analyzer destroyed. 37440_ Penetrated by Slug. 37440_ Slug penetrates G-73 Enforcer. 37441_ Knocked back. 37442_ U-05 Engineer lays Concrete. 37443_ Imp. Core Shielding destroyed. 37443_ Acquired 53 matter. 37444_ System corrupted: Component data lost. 37444_ Acquired 52 matter. 37444_ U-05 Engineer lays Concrete. 37445_ M-36 Artificer fits Backup Plating VII on M-36 Artificer. Map ----- +----------------------------------------------------+ | ???????????????????????? ????????????????????? | | ???????????????????????? ? ??????????? ???????? | | ??????????????????????? ? ??????? ??????? | | ??????????????????????? ?? ???? ??????? | | ???????????????#########? ?? ???? ! ?????? | | ???????????????" #= ? ?? #????? | | ???????????????" [# ? ?? #????? | | ???????????????" !%############ #????? | | ???????????????" ! =/%!!%!*!= +????? | | ???????????????"! / / !![!===% % #????? | | ??????????? ?"?" ! %==!%%%!% | +????? | | ????????? ???"?" ! =!! *[%*% /// #????? | | ????????"???"""" % ! %=###%|=[ / #????? | | ?????? ?? ??"""" %#!#[!= / ! #????? | | ????????? """" % %#!#]!% % #????? | | ???????################# #%%]% #????? | | ????#???##?###??######## #!!]! #????? | | ???#?###?####?######?### #==] #????? | | ??#?####?###?#??####?### #[ ! """ #????? | | ????##?##?##?########?## #####=% = """"" #????? | | ?#?###?#####?########?#####!%# |[| """" ###??? | | ?? ?? # ? #############!#*!%% """ #??? | | ?? # ?######### ## %#[*=! """ #??? | | ? ? + ? ? ## g *#!%= +??? | | ?# #?? " ?## g #####= #??? | | ## #? """ ## g @ K #??? | | ??#? ## ?""" ## g #########+###### ##??? | | ?## ## " ## # [=!^ # #???? | | ?## ??? ? ## # # [ !%! # #???? | | ?## ?##? ## !### !!!! # #???? | | ##? ?#? #? #### = #[ !!|* #? ? #???? | | ## ## #? #### = *]= #%! = # #???? | | ?# # # #########+# #[=[ ]] # ? # ? | | ? % %%=[ # ]] # ? ??? | | ? % % =+ ] # ?# ? | | ?# ### % ##########+##+# *= # # | | ###?## # ###?# # [%!%# # ? | | ? ? ? ? ##### # !=!!=# #? ?? | | ? ? # ##### % # !%|=# # ? | | ? ? ??# ??### ###########+## ####? | | ? ? ##### # ######### ## ####? | | ?"""""? # ? / % ## ## ##### | | """"" # ##### ## ## ## | | ? ""?""? ?# #?### %% % ## ## # | | ? """?"? ? ?###### ##### ! ## ## # | | ?""?" # ####### # # ## ^ # | | ???"""" #??####### ## ## # | | ???? ? # ####### ### ##^ # | | ? ? ? # #?#?### ## ### # # | | #???#?##### ?####### ######## # | +----------------------------------------------------+ Best States ------------- Heat Dissipation 114 Energy Generation 65 Energy Capacity 780 Matter Stores 300 Matter Capacity 300 Sight Range 20 Robot Scan Range 20 Terrain Scan Range 24 Terrain Scan Density 210 Jamming Range 16 Power Amplification 40 Corruption Containment 8 Armor Coverage 3600 Resistance: KI 30 Resistance: TH 25 Resistance: EM 75 Weapon Shielding 100 Weapon Cycling 20 Evasion (%) 57 Targeting Accuracy 6 Target Analysis 8 Core Analysis 6 Recoil Reduction 8 Kinecelleration 40 Defensive Hacking 12 Authchip Count 2 Trap Extractor Capacity 4 Item Schematics ----------------- Sub. Shrapnel Launcher | -9/Materials | Scanalyzed Hrd. Light Armor Plating | -9/Materials | Scanalyzed Exp. Sensor Array | -8/Materials | Scanalyzed Hrd. Medium Armor Plating | -7/Factory | Scanalyzed Arm. Treads | -7/Factory | Scanalyzed Lyr. Light Armor Plating | -7/Factory | Extracted Combat Drone Bay | -6/Data Miner | Free Lgt. Regenerative Plating | -6/Data Miner | Free Cld. Gravmag System | -6/Data Miner | Free Exp. Heat Sink | -6/Data Miner | Free Cld. Plasma Rifle | -6/Data Miner | Free Centrium Wheel | -6/Data Miner | Free Imp. Force Booster | -6/Data Miner | Free Hardcell Cannon | -6/Data Miner | Free Adv. Field Recycling Unit | -6/Data Miner | Free Adv. Reaction Control System | -6/Data Miner | Free Adv. Force Field | -6/Data Miner | Free Imp. Matter Compressor | -5/Extension | Z-intel Enh. Coil Gun | -5/Extension | Z-intel Imp. Energy Well | -5/Extension | Z-intel Fusion Reactor | -5/Extension | Z-intel Gui. EMP Blaster | -5/Extension | Z-intel Force Rifle | -5/Extension | Z-intel Mni. Smartbomb Launcher | -5/Extension | Z-intel Prc. Assault Rifle | -5/Extension | Z-intel F-cell Engine | -5/Extension | Z-intel Tesla Bomb Launcher | -5/Extension | Z-intel Lgt. Neutrino Core | -5/Extension | Z-intel Prc. Energy Filter | -5/Extension | Z-intel Robot Schematics ------------------ B-48 Gladiator | -6/Data Miner | Free E-15 Imp | -6/Data Miner | Free L-41 Fighter | -6/Data Miner | Free P-70 Sage | -6/Data Miner | Free H-66 Slayer | -6/Data Miner | Free Fabricated ------------ Mni. Smartbomb Launcher | x1 | -2/Research | Authchip P-70 Sage | x2 | -2/Research | Authchip Alien Tech Used ----------------- Core Expander Achievements -------------- None Challenges ------------ None Game ------ Seed BlastLatentShredder Manual? 0 Play Time 03:19:45 Cumulative 1317.4 hours Start 2023.06.28 @ 04:11:26 End 2023.06.29 @ 04:01:04 Sessions 9 Manual Loads 0 Difficulty Rogue Special Mode None Game No. 948 Rogue 944 Adventurer 4 Explorer 0 Win Type - Total 149 Types 111/10/10/6/2/1/1/5/3 Lore% 95 Gallery% 97 Achievement% 98 Wizard Run 0 Options --------- ASCII 0 Keyboard 1 Movement Vi Keybinds 0 Fullscreen 0 Font 20/X11 Map View 76x50 Tactical HUD 1 Map Filters NONE Filters NONE Steam 1 RUN: 7a1ee98c-6370-4971-baa4-266cfbc11eb1